[Event "Titled Tuesday Blitz June 20 Late 2023"]
[White "Liu, Casper"]
[Black "Tomiello, Lucas Costamilan"]
[WhiteFideId "1454153"]
[BlackFideId "22701940"]
[WhiteElo "2221"]
[BlackElo "2116"]
[Result "0-1"]
[Round "6"]
[TimeControl "180+2"]
[Date "2023.06.20"]
[WhiteClock "0:00:28"]
[BlackClock "0:00:10"]
[Board "85"]

1. e4 {[%clk 0:02:57]}  c5 {[%clk 0:03:00]} 2. d4 {[%clk 0:02:57]}  cxd4 {[%clk 0:03:00]} 3. Qxd4 {[%clk 0:02:58]}  Nc6 {[%clk 0:03:00]} 4. Qe3 {[%clk 0:02:58]}  g6 {[%clk 0:02:55]} 5. Nc3 {[%clk 0:02:59]}  d6 {[%clk 0:02:50]} 6. Bd2 {[%clk 0:02:59]}  Bg7 {[%clk 0:02:47]} 7. O-O-O {[%clk 0:02:59]}  Nf6 {[%clk 0:02:46]} 8. f3 {[%clk 0:02:59]}  Be6 {[%clk 0:02:42]} 9. h4 {[%clk 0:02:58]}  h5 {[%clk 0:02:42]} 10. Nh3 {[%clk 0:02:58]}  Ne5 {[%clk 0:02:34]} 11. Ng5 {[%clk 0:02:42]}  O-O {[%clk 0:02:19]} 12. Nxe6 {[%clk 0:02:26]}  fxe6 {[%clk 0:02:20]} 13. Bb5 {[%clk 0:02:17]}  a6 {[%clk 0:02:17]} 14. Ba4 {[%clk 0:02:17]}  Rc8 {[%clk 0:02:03]} 15. Bb3 {[%clk 0:02:13]}  Nc4 {[%clk 0:01:55]} 16. Qd3 {[%clk 0:02:10]}  b5 {[%clk 0:01:34]} 17. Ne2 {[%clk 0:02:09]}  e5 {[%clk 0:01:17]} 18. g4 {[%clk 0:01:37]}  hxg4 {[%clk 0:01:07]} 19. h5 {[%clk 0:01:23]}  Nxh5 {[%clk 0:01:00]} 20. fxg4 {[%clk 0:01:22]}  Nf4 {[%clk 0:01:00]} 21. Nxf4 {[%clk 0:01:21]}  exf4 {[%clk 0:01:00]} 22. Qd5+ {[%clk 0:00:56]}  Rf7 {[%clk 0:00:54]} 23. Rdf1 {[%clk 0:00:57]}  Rc5 {[%clk 0:00:49]} 24. Qe6 {[%clk 0:00:57]}  g5 {[%clk 0:00:35]} 25. Bxf4 {[%clk 0:00:54]}  gxf4 {[%clk 0:00:27]} 26. Rxf4 {[%clk 0:00:54]}  Qf8 {[%clk 0:00:20]} 27. Rhf1 {[%clk 0:00:39]}  Bh6 {[%clk 0:00:20]} 28. Qg6+ {[%clk 0:00:39]}  Qg7 {[%clk 0:00:17]} 29. Qe6 {[%clk 0:00:30]}  Bxf4+ {[%clk 0:00:17]} 30. Rxf4 {[%clk 0:00:31]}  Re5 {[%clk 0:00:10]} 31. Qc8+ {[%clk 0:00:29]}  Kh7 {[%clk 0:00:10]} 32. Rf5 {[%clk 0:00:29]}  Rfxf5 {[%clk 0:00:10]} 33. exf5 {[%clk 0:00:28]}  Re1# {[%clk 0:00:10]} 0-1


[Site "https://www.chess.com"]

[Event "Titled Tuesday Blitz June 20 Late 2023"]
[White "Buchenau, Frank"]
[Black "Principe, Gerson"]
[WhiteFideId "4604350"]
[BlackFideId "3804550"]
[WhiteElo "2157"]
[BlackElo "2229"]
[Result "1/2-1/2"]
[Round "6"]
[TimeControl "180+2"]
[Date "2023.06.20"]
[WhiteClock "0:00:13"]
[BlackClock "0:00:10"]
[Board "89"]

1. e4 {[%clk 0:03:00]}  c5 {[%clk 0:02:51]} 2. Nf3 {[%clk 0:03:00]}  e6 {[%clk 0:02:45]} 3. d4 {[%clk 0:03:00]}  cxd4 {[%clk 0:02:46]} 4. Nxd4 {[%clk 0:03:00]}  Bc5 {[%clk 0:02:42]} 5. Nb3 {[%clk 0:02:58]}  Bb6 {[%clk 0:02:41]} 6. Bd3 {[%clk 0:02:41]}  Ne7 {[%clk 0:02:39]} 7. O-O {[%clk 0:02:40]}  Nbc6 {[%clk 0:02:33]} 8. Qe2 {[%clk 0:02:39]}  d5 {[%clk 0:02:30]} 9. e5 {[%clk 0:02:36]}  Nb4 {[%clk 0:02:18]} 10. Be3 {[%clk 0:02:14]}  Nxd3 {[%clk 0:02:16]} 11. Bxb6 {[%clk 0:02:06]}  Qxb6 {[%clk 0:02:09]} 12. cxd3 {[%clk 0:02:00]}  O-O {[%clk 0:02:04]} 13. Nc3 {[%clk 0:01:52]}  Bd7 {[%clk 0:02:04]} 14. Qe3 {[%clk 0:01:50]}  Qxe3 {[%clk 0:01:54]} 15. fxe3 {[%clk 0:01:50]}  Rfc8 {[%clk 0:01:55]} 16. Rac1 {[%clk 0:01:47]}  Rc7 {[%clk 0:01:38]} 17. Nd4 {[%clk 0:01:28]}  a6 {[%clk 0:01:35]} 18. Nce2 {[%clk 0:01:19]}  Rac8 {[%clk 0:01:30]} 19. Rxc7 {[%clk 0:01:17]}  Rxc7 {[%clk 0:01:30]} 20. Rc1 {[%clk 0:01:16]}  Rxc1+ {[%clk 0:01:23]} 21. Nxc1 {[%clk 0:01:17]}  Ng6 {[%clk 0:01:19]} 22. Nf3 {[%clk 0:01:17]}  f6 {[%clk 0:01:20]} 23. d4 {[%clk 0:00:56]}  Kf7 {[%clk 0:01:00]} 24. Nd3 {[%clk 0:00:53]}  b6 {[%clk 0:01:00]} 25. Kf2 {[%clk 0:00:44]}  a5 {[%clk 0:00:58]} 26. Nf4 {[%clk 0:00:38]}  Ne7 {[%clk 0:00:54]} 27. Ke1 {[%clk 0:00:31]}  Bb5 {[%clk 0:00:55]} 28. Kd2 {[%clk 0:00:31]}  Nc6 {[%clk 0:00:52]} 29. Kc3 {[%clk 0:00:26]}  Ne7 {[%clk 0:00:47]} 30. g4 {[%clk 0:00:25]}  Bf1 {[%clk 0:00:44]} 31. h4 {[%clk 0:00:24]}  h6 {[%clk 0:00:37]} 32. exf6 {[%clk 0:00:23]}  gxf6 {[%clk 0:00:37]} 33. g5 {[%clk 0:00:22]}  hxg5 {[%clk 0:00:34]} 34. hxg5 {[%clk 0:00:23]}  Bb5 {[%clk 0:00:22]} 35. b3 {[%clk 0:00:19]}  Nf5 {[%clk 0:00:20]} 36. Kd2 {[%clk 0:00:17]}  Ng3 {[%clk 0:00:19]} 37. gxf6 {[%clk 0:00:17]}  Kxf6 {[%clk 0:00:19]} 38. Ne5 {[%clk 0:00:16]}  Nf5 {[%clk 0:00:19]} 39. Nh5+ {[%clk 0:00:14]}  Ke7 {[%clk 0:00:19]} 40. Nf4 {[%clk 0:00:14]}  Ng3 {[%clk 0:00:18]} 41. Nfg6+ {[%clk 0:00:13]}  Kd6 {[%clk 0:00:18]} 42. Nf4 {[%clk 0:00:13]}  Ne4+ {[%clk 0:00:18]} 43. Kc2 {[%clk 0:00:13]}  Ng3 {[%clk 0:00:18]} 44. a4 {[%clk 0:00:14]}  Be8 {[%clk 0:00:13]} 45. Kc3 {[%clk 0:00:13]}  Ne4+ {[%clk 0:00:13]} 46. Kd3 {[%clk 0:00:14]}  b5 {[%clk 0:00:12]} 47. axb5 {[%clk 0:00:12]}  Bxb5+ {[%clk 0:00:13]} 48. Kc2 {[%clk 0:00:13]}  Nf2 {[%clk 0:00:11]} 49. Kc3 {[%clk 0:00:12]}  Ne4+ {[%clk 0:00:10]} 50. Kc2 {[%clk 0:00:13]}  Nf2 {[%clk 0:00:10]} 51. Kc3 {[%clk 0:00:13]}  Ne4+ {[%clk 0:00:10]} 52. Kc2 {[%clk 0:00:13]} 1/2-1/2


[Site "https://www.chess.com"]

[Event "Titled Tuesday Blitz June 20 Late 2023"]
[White "Rostomyan, Mikayel"]
[Black "Wang, Isaac"]
[WhiteFideId "13313754"]
[BlackFideId "30977185"]
[WhiteElo "2061"]
[BlackElo "2398"]
[Result "0-1"]
[Round "6"]
[TimeControl "180+2"]
[Date "2023.06.20"]
[WhiteClock "0:00:13"]
[BlackClock "0:01:27"]
[Board "90"]

1. e4 {[%clk 0:03:00]}  c5 {[%clk 0:02:59]} 2. b4 {[%clk 0:02:58]}  cxb4 {[%clk 0:02:57]} 3. Nf3 {[%clk 0:02:51]}  d5 {[%clk 0:02:54]} 4. exd5 {[%clk 0:02:51]}  Qxd5 {[%clk 0:02:55]} 5. c4 {[%clk 0:02:52]}  Qd8 {[%clk 0:02:53]} 6. d4 {[%clk 0:02:50]}  e6 {[%clk 0:02:53]} 7. Bd3 {[%clk 0:02:48]}  Nf6 {[%clk 0:02:54]} 8. O-O {[%clk 0:02:48]}  Be7 {[%clk 0:02:54]} 9. a3 {[%clk 0:02:48]}  bxa3 {[%clk 0:02:54]} 10. Nxa3 {[%clk 0:02:48]}  O-O {[%clk 0:02:53]} 11. Bb2 {[%clk 0:02:47]}  Nc6 {[%clk 0:02:53]} 12. Re1 {[%clk 0:02:46]}  b6 {[%clk 0:02:53]} 13. d5 {[%clk 0:02:35]}  exd5 {[%clk 0:02:47]} 14. cxd5 {[%clk 0:02:35]}  Nxd5 {[%clk 0:02:43]} 15. Bxh7+ {[%clk 0:01:43]}  Kxh7 {[%clk 0:02:40]} 16. Qc2+ {[%clk 0:01:43]}  Kg8 {[%clk 0:02:39]} 17. Qxc6 {[%clk 0:01:42]}  Be6 {[%clk 0:02:34]} 18. Rxe6 {[%clk 0:01:36]}  Rc8 {[%clk 0:02:23]} 19. Qa4 {[%clk 0:01:15]}  fxe6 {[%clk 0:02:21]} 20. Qg4 {[%clk 0:01:16]}  Bf6 {[%clk 0:02:20]} 21. Qxe6+ {[%clk 0:01:14]}  Rf7 {[%clk 0:02:15]} 22. Bxf6 {[%clk 0:01:10]}  gxf6 {[%clk 0:01:57]} 23. Qg4+ {[%clk 0:00:54]}  Rg7 {[%clk 0:01:49]} 24. Qe6+ {[%clk 0:00:54]}  Kf8 {[%clk 0:01:44]} 25. Rd1 {[%clk 0:00:50]}  Qd7 {[%clk 0:01:40]} 26. Qe4 {[%clk 0:00:48]}  Nc3 {[%clk 0:01:34]} 27. Qb4+ {[%clk 0:00:35]}  Qe7 {[%clk 0:01:34]} 28. Rd6 {[%clk 0:00:13]}  Ne4 {[%clk 0:01:27]} 0-1


[Site "https://www.chess.com"]

[Event "Titled Tuesday Blitz June 20 Late 2023"]
[White "Avalos Parra, Joao"]
[Black "Maiti, Milind"]
[WhiteFideId "3402541"]
[BlackFideId "2090767"]
[WhiteElo "2173"]
[BlackElo "2150"]
[Result "0-1"]
[Round "6"]
[TimeControl "180+2"]
[Date "2023.06.20"]
[WhiteClock "0:00:43"]
[BlackClock "0:00:41"]
[Board "92"]

1. d4 {[%clk 0:03:00]}  Nf6 {[%clk 0:02:59]} 2. c4 {[%clk 0:02:57]}  e6 {[%clk 0:02:59]} 3. Nf3 {[%clk 0:02:57]}  d5 {[%clk 0:02:59]} 4. Nc3 {[%clk 0:02:56]}  Bb4 {[%clk 0:02:59]} 5. cxd5 {[%clk 0:02:54]}  exd5 {[%clk 0:02:58]} 6. Qb3 {[%clk 0:02:54]}  Be7 {[%clk 0:02:23]} 7. Bg5 {[%clk 0:02:52]}  c6 {[%clk 0:02:23]} 8. e3 {[%clk 0:02:52]}  O-O {[%clk 0:02:23]} 9. Bd3 {[%clk 0:02:52]}  Re8 {[%clk 0:02:19]} 10. O-O {[%clk 0:02:53]}  Nbd7 {[%clk 0:02:18]} 11. Qc2 {[%clk 0:02:52]}  Nf8 {[%clk 0:02:15]} 12. Rab1 {[%clk 0:02:51]}  a5 {[%clk 0:02:14]} 13. a3 {[%clk 0:02:51]}  Ng6 {[%clk 0:02:06]} 14. b4 {[%clk 0:02:51]}  axb4 {[%clk 0:02:06]} 15. axb4 {[%clk 0:02:51]}  Bd7 {[%clk 0:01:59]} 16. b5 {[%clk 0:02:43]}  Ra3 {[%clk 0:01:48]} 17. bxc6 {[%clk 0:02:41]}  bxc6 {[%clk 0:01:48]} 18. Na4 {[%clk 0:02:20]}  Qa5 {[%clk 0:01:42]} 19. Bxf6 {[%clk 0:02:16]}  Bxf6 {[%clk 0:01:37]} 20. Nc5 {[%clk 0:02:15]}  Bg4 {[%clk 0:01:33]} 21. Nd2 {[%clk 0:02:12]}  Rc3 {[%clk 0:01:27]} 22. Ra1 {[%clk 0:01:47]}  Rxc2 {[%clk 0:01:21]} 23. Rxa5 {[%clk 0:01:44]}  Rxd2 {[%clk 0:01:22]} 24. Rb1 {[%clk 0:01:40]}  h6 {[%clk 0:01:09]} 25. h3 {[%clk 0:01:40]}  Be2 {[%clk 0:01:05]} 26. Bf5 {[%clk 0:01:33]}  Ne7 {[%clk 0:00:54]} 27. Bd7 {[%clk 0:01:32]}  Rd8 {[%clk 0:00:54]} 28. Rb7 {[%clk 0:01:28]}  Bb5 {[%clk 0:00:50]} 29. Raa7 {[%clk 0:01:07]}  Rd1+ {[%clk 0:00:50]} 30. Kh2 {[%clk 0:01:07]}  Rf1 {[%clk 0:00:50]} 31. Kg3 {[%clk 0:01:06]}  h5 {[%clk 0:00:50]} 32. h4 {[%clk 0:01:06]}  Ng6 {[%clk 0:00:48]} 33. Bh3 {[%clk 0:01:00]}  Bxh4+ {[%clk 0:00:46]} 34. Kh2 {[%clk 0:01:01]}  Rxf2 {[%clk 0:00:44]} 35. Nd7 {[%clk 0:00:43]}  Re8 {[%clk 0:00:41]} 0-1


[Site "https://www.chess.com"]

[Event "Titled Tuesday Blitz June 20 Late 2023"]
[White "Leenhouts, Koen"]
[Black "Buscar, Michael"]
[WhiteFideId "1008439"]
[BlackFideId "2603616"]
[WhiteElo "2409"]
[BlackElo "2010"]
[Result "1/2-1/2"]
[Round "6"]
[TimeControl "180+2"]
[Date "2023.06.20"]
[WhiteClock "0:00:07"]
[BlackClock "0:00:07"]
[Board "93"]

1. e4 {[%clk 0:03:00]}  c5 {[%clk 0:02:59]} 2. Nf3 {[%clk 0:03:00]}  Nc6 {[%clk 0:03:00]} 3. d4 {[%clk 0:02:59]}  cxd4 {[%clk 0:03:01]} 4. Nxd4 {[%clk 0:02:59]}  Nf6 {[%clk 0:03:01]} 5. Nc3 {[%clk 0:02:58]}  e5 {[%clk 0:03:02]} 6. Ndb5 {[%clk 0:02:57]}  h6 {[%clk 0:03:02]} 7. Nd5 {[%clk 0:02:52]}  Nxd5 {[%clk 0:03:02]} 8. exd5 {[%clk 0:02:52]}  a6 {[%clk 0:03:03]} 9. Nc3 {[%clk 0:02:50]}  Nd4 {[%clk 0:03:02]} 10. Be3 {[%clk 0:02:45]}  Nf5 {[%clk 0:02:58]} 11. Bd3 {[%clk 0:02:42]}  Nxe3 {[%clk 0:02:57]} 12. fxe3 {[%clk 0:02:43]}  d6 {[%clk 0:02:54]} 13. O-O {[%clk 0:02:41]}  Qg5 {[%clk 0:02:47]} 14. Qf3 {[%clk 0:02:35]}  f6 {[%clk 0:02:33]} 15. Ne4 {[%clk 0:02:13]}  Qg4 {[%clk 0:02:29]} 16. Qf2 {[%clk 0:01:54]}  Be7 {[%clk 0:02:06]} 17. h3 {[%clk 0:01:51]}  Qh5 {[%clk 0:02:04]} 18. Ng3 {[%clk 0:01:51]}  Qf7 {[%clk 0:02:04]} 19. c4 {[%clk 0:01:43]}  O-O {[%clk 0:01:56]} 20. Nf5 {[%clk 0:01:39]}  Bd7 {[%clk 0:01:48]} 21. Qg3 {[%clk 0:01:37]}  Kh8 {[%clk 0:01:47]} 22. Nxe7 {[%clk 0:01:24]}  Qxe7 {[%clk 0:01:43]} 23. Qg6 {[%clk 0:01:23]}  e4 {[%clk 0:01:24]} 24. Bxe4 {[%clk 0:01:20]}  f5 {[%clk 0:01:24]} 25. Bxf5 {[%clk 0:01:18]}  Qxe3+ {[%clk 0:01:24]} 26. Kh1 {[%clk 0:01:17]}  Bxf5 {[%clk 0:01:24]} 27. Rxf5 {[%clk 0:01:17]}  Rxf5 {[%clk 0:01:21]} 28. Qxf5 {[%clk 0:01:16]}  Re8 {[%clk 0:01:19]} 29. Qc2 {[%clk 0:01:06]}  Rf8 {[%clk 0:01:10]} 30. Qc1 {[%clk 0:00:42]}  Qe2 {[%clk 0:01:02]} 31. Qc3 {[%clk 0:00:35]}  Rf2 {[%clk 0:00:53]} 32. Re1 {[%clk 0:00:32]}  Rf1+ {[%clk 0:00:29]} 33. Rxf1 {[%clk 0:00:32]}  Qxf1+ {[%clk 0:00:30]} 34. Kh2 {[%clk 0:00:32]}  Qf4+ {[%clk 0:00:29]} 35. Kg1 {[%clk 0:00:31]}  Qe4 {[%clk 0:00:28]} 36. a3 {[%clk 0:00:26]}  Qe2 {[%clk 0:00:21]} 37. b4 {[%clk 0:00:24]}  b6 {[%clk 0:00:15]} 38. Qd4 {[%clk 0:00:20]}  Qe1+ {[%clk 0:00:14]} 39. Kh2 {[%clk 0:00:19]}  a5 {[%clk 0:00:13]} 40. Qxb6 {[%clk 0:00:19]}  Qe5+ {[%clk 0:00:12]} 41. Kh1 {[%clk 0:00:19]}  Qa1+ {[%clk 0:00:12]} 42. Qg1 {[%clk 0:00:19]}  Qxa3 {[%clk 0:00:12]} 43. bxa5 {[%clk 0:00:18]}  Qxa5 {[%clk 0:00:12]} 44. Qd4 {[%clk 0:00:17]}  Qe1+ {[%clk 0:00:10]} 45. Kh2 {[%clk 0:00:17]}  Qc1 {[%clk 0:00:10]} 46. Qe4 {[%clk 0:00:16]}  Kg8 {[%clk 0:00:07]} 47. Qe6+ {[%clk 0:00:16]}  Kh7 {[%clk 0:00:07]} 48. Qxd6 {[%clk 0:00:16]}  Qxc4 {[%clk 0:00:07]} 49. Qe5 {[%clk 0:00:16]}  Qb5 {[%clk 0:00:06]} 50. Qe4+ {[%clk 0:00:15]}  Kg8 {[%clk 0:00:06]} 51. d6 {[%clk 0:00:15]}  Qd7 {[%clk 0:00:04]} 52. Qd5+ {[%clk 0:00:14]}  Kf8 {[%clk 0:00:04]} 53. Qa8+ {[%clk 0:00:13]}  Kf7 {[%clk 0:00:04]} 54. Qd5+ {[%clk 0:00:12]}  Kf6 {[%clk 0:00:05]} 55. Qd4+ {[%clk 0:00:12]}  Ke6 {[%clk 0:00:05]} 56. Kg3 {[%clk 0:00:07]}  Qxd6+ {[%clk 0:00:05]} 57. Qxd6+ {[%clk 0:00:08]}  Kxd6 {[%clk 0:00:06]} 58. Kg4 {[%clk 0:00:08]}  Ke6 {[%clk 0:00:06]} 59. Kh5 {[%clk 0:00:07]}  Kf5 {[%clk 0:00:06]} 60. g4+ {[%clk 0:00:05]}  Kf6 {[%clk 0:00:07]} 61. h4 {[%clk 0:00:05]}  Kf7 {[%clk 0:00:05]} 62. g5 {[%clk 0:00:05]}  hxg5 {[%clk 0:00:05]} 63. Kxg5 {[%clk 0:00:05]}  g6 {[%clk 0:00:05]} 64. Kg4 {[%clk 0:00:05]}  Kg7 {[%clk 0:00:05]} 65. Kf4 {[%clk 0:00:05]}  Kf6 {[%clk 0:00:06]} 66. Kg4 {[%clk 0:00:06]}  Kg7 {[%clk 0:00:06]} 67. Kg5 {[%clk 0:00:06]}  Kh7 {[%clk 0:00:06]} 68. h5 {[%clk 0:00:06]}  gxh5 {[%clk 0:00:07]} 69. Kxh5 {[%clk 0:00:07]} 1/2-1/2


[Site "https://www.chess.com"]

[Event "Titled Tuesday Blitz June 20 Late 2023"]
[White "Blackburn, Jonathan L B"]
[Black "Xu, Yi"]
[WhiteFideId "1801090"]
[BlackFideId "8605564"]
[WhiteElo "2178"]
[BlackElo "2460"]
[Result "0-1"]
[Round "6"]
[TimeControl "180+2"]
[Date "2023.06.20"]
[WhiteClock "0:00:00"]
[BlackClock "0:00:46"]
[Board "95"]

1. d4 {[%clk 0:03:00]}  Nf6 {[%clk 0:02:59]} 2. c4 {[%clk 0:03:01]}  e6 {[%clk 0:02:59]} 3. Nf3 {[%clk 0:02:59]}  d5 {[%clk 0:03:00]} 4. Nc3 {[%clk 0:02:59]}  c5 {[%clk 0:03:00]} 5. cxd5 {[%clk 0:02:57]}  cxd4 {[%clk 0:02:57]} 6. Qxd4 {[%clk 0:02:56]}  exd5 {[%clk 0:02:57]} 7. Bg5 {[%clk 0:02:50]}  Be7 {[%clk 0:02:57]} 8. e3 {[%clk 0:02:51]}  O-O {[%clk 0:02:56]} 9. Be2 {[%clk 0:02:41]}  h6 {[%clk 0:02:56]} 10. Bh4 {[%clk 0:02:34]}  Nc6 {[%clk 0:02:57]} 11. Qd1 {[%clk 0:02:28]}  Be6 {[%clk 0:02:57]} 12. O-O {[%clk 0:02:28]}  Qb6 {[%clk 0:02:54]} 13. a3 {[%clk 0:02:00]}  Rfd8 {[%clk 0:02:49]} 14. b4 {[%clk 0:01:36]}  Rac8 {[%clk 0:02:43]} 15. Na4 {[%clk 0:01:26]}  Qc7 {[%clk 0:02:42]} 16. Rc1 {[%clk 0:01:01]}  a6 {[%clk 0:02:19]} 17. Nd4 {[%clk 0:00:46]}  Ne4 {[%clk 0:02:08]} 18. Nxe6 {[%clk 0:00:35]}  fxe6 {[%clk 0:02:09]} 19. Bxe7 {[%clk 0:00:28]}  Qxe7 {[%clk 0:02:09]} 20. Bf3 {[%clk 0:00:20]}  Nd6 {[%clk 0:02:08]} 21. Nc5 {[%clk 0:00:19]}  Nc4 {[%clk 0:02:03]} 22. Rc3 {[%clk 0:00:15]}  N6e5 {[%clk 0:02:02]} 23. Be2 {[%clk 0:00:14]}  Qf6 {[%clk 0:01:57]} 24. Qd4 {[%clk 0:00:13]}  Qg6 {[%clk 0:01:34]} 25. Nxb7 {[%clk 0:00:10]}  Rf8 {[%clk 0:01:27]} 26. f4 {[%clk 0:00:08]}  Nc6 {[%clk 0:01:14]} 27. Qd3 {[%clk 0:00:08]}  Qf6 {[%clk 0:01:09]} 28. Nc5 {[%clk 0:00:05]}  a5 {[%clk 0:01:05]} 29. b5 {[%clk 0:00:03]}  Ne7 {[%clk 0:00:57]} 30. Nd7 {[%clk 0:00:03]}  Qf7 {[%clk 0:00:53]} 31. Nxf8 {[%clk 0:00:03]}  Rxf8 {[%clk 0:00:54]} 32. Qc2 {[%clk 0:00:00]}  Nb6 {[%clk 0:00:46]} 0-1


[Site "https://www.chess.com"]

[Event "Titled Tuesday Blitz June 20 Late 2023"]
[White "Veiga, Jose Francisco R P Neves"]
[Black "Fiedorek, Michal"]
[WhiteFideId "1930087"]
[BlackFideId "1199528"]
[WhiteElo "2319"]
[BlackElo "2135"]
[Result "0-1"]
[Round "6"]
[TimeControl "180+2"]
[Date "2023.06.20"]
[WhiteClock "0:00:05"]
[BlackClock "0:00:12"]
[Board "97"]

1. e4 {[%clk 0:02:57]}  c6 {[%clk 0:02:59]} 2. Nf3 {[%clk 0:02:57]}  d5 {[%clk 0:02:59]} 3. Nc3 {[%clk 0:02:58]}  dxe4 {[%clk 0:02:53]} 4. Nxe4 {[%clk 0:02:59]}  Nf6 {[%clk 0:02:54]} 5. Qe2 {[%clk 0:02:59]}  Nxe4 {[%clk 0:02:53]} 6. Qxe4 {[%clk 0:03:00]}  Be6 {[%clk 0:02:54]} 7. Ne5 {[%clk 0:02:49]}  Qd5 {[%clk 0:02:50]} 8. Qe3 {[%clk 0:02:45]}  Nd7 {[%clk 0:02:49]} 9. Nxd7 {[%clk 0:02:45]}  Qxd7 {[%clk 0:02:49]} 10. Be2 {[%clk 0:02:45]}  g6 {[%clk 0:02:49]} 11. Qc3 {[%clk 0:02:44]}  f6 {[%clk 0:02:43]} 12. d4 {[%clk 0:02:43]}  Bg7 {[%clk 0:02:43]} 13. Be3 {[%clk 0:02:42]}  O-O {[%clk 0:02:42]} 14. O-O {[%clk 0:02:42]}  Bd5 {[%clk 0:02:37]} 15. Rfe1 {[%clk 0:02:42]}  e5 {[%clk 0:02:29]} 16. dxe5 {[%clk 0:02:40]}  fxe5 {[%clk 0:02:29]} 17. Rad1 {[%clk 0:02:39]}  Qf7 {[%clk 0:02:28]} 18. Qb4 {[%clk 0:02:08]}  a5 {[%clk 0:02:05]} 19. Qc5 {[%clk 0:02:00]}  Rfe8 {[%clk 0:01:44]} 20. c4 {[%clk 0:01:51]}  Bf8 {[%clk 0:01:42]} 21. Qb6 {[%clk 0:01:43]}  Bxc4 {[%clk 0:01:20]} 22. Bxc4 {[%clk 0:01:38]}  Qxc4 {[%clk 0:01:20]} 23. Qxb7 {[%clk 0:01:38]}  Qxa2 {[%clk 0:01:20]} 24. Qxc6 {[%clk 0:01:32]}  Rac8 {[%clk 0:01:13]} 25. Qa6 {[%clk 0:01:11]}  Bb4 {[%clk 0:01:09]} 26. Re2 {[%clk 0:01:10]}  Qb3 {[%clk 0:01:01]} 27. Rf1 {[%clk 0:00:45]}  Qc4 {[%clk 0:01:01]} 28. Qxc4+ {[%clk 0:00:41]}  Rxc4 {[%clk 0:01:01]} 29. Rd1 {[%clk 0:00:41]}  Rec8 {[%clk 0:01:01]} 30. Bg5 {[%clk 0:00:37]}  Rc2 {[%clk 0:00:57]} 31. Rxe5 {[%clk 0:00:35]}  Rxb2 {[%clk 0:00:57]} 32. Be3 {[%clk 0:00:32]}  a4 {[%clk 0:00:45]} 33. h4 {[%clk 0:00:32]}  a3 {[%clk 0:00:44]} 34. Bd4 {[%clk 0:00:28]}  Rbc2 {[%clk 0:00:37]} 35. Rb5 {[%clk 0:00:19]}  Bd6 {[%clk 0:00:27]} 36. g3 {[%clk 0:00:11]}  a2 {[%clk 0:00:26]} 37. Rd5 {[%clk 0:00:07]}  Bf8 {[%clk 0:00:14]} 38. Ra5 {[%clk 0:00:07]}  Bg7 {[%clk 0:00:08]} 39. Bxg7 {[%clk 0:00:06]}  Kxg7 {[%clk 0:00:09]} 40. Rd7+ {[%clk 0:00:06]}  Kg8 {[%clk 0:00:08]} 41. Kg2 {[%clk 0:00:04]}  Rf8 {[%clk 0:00:06]} 42. Raa7 {[%clk 0:00:04]}  Rfxf2+ {[%clk 0:00:06]} 43. Kh3 {[%clk 0:00:05]}  Rh2+ {[%clk 0:00:05]} 44. Kg4 {[%clk 0:00:05]}  Rc4+ {[%clk 0:00:04]} 45. Kg5 {[%clk 0:00:06]}  Rc5+ {[%clk 0:00:04]} 46. Kf6 {[%clk 0:00:04]}  Rf5+ {[%clk 0:00:05]} 47. Ke6 {[%clk 0:00:03]}  Re2+ {[%clk 0:00:05]} 48. Kd6 {[%clk 0:00:04]}  Rd2+ {[%clk 0:00:06]} 49. Ke7 {[%clk 0:00:04]}  Re5+ {[%clk 0:00:05]} 50. Kf6 {[%clk 0:00:04]}  Rxd7 {[%clk 0:00:04]} 51. Rxd7 {[%clk 0:00:03]}  Rf5+ {[%clk 0:00:04]} 52. Ke6 {[%clk 0:00:02]}  a1=Q {[%clk 0:00:05]} 53. Rd8+ {[%clk 0:00:03]}  Kg7 {[%clk 0:00:05]} 54. Rd7+ {[%clk 0:00:04]}  Kh6 {[%clk 0:00:06]} 55. g4 {[%clk 0:00:02]}  Qe1+ {[%clk 0:00:06]} 56. Kd6 {[%clk 0:00:02]}  Qe5+ {[%clk 0:00:06]} 57. Kc6 {[%clk 0:00:03]}  Rf6+ {[%clk 0:00:07]} 58. Kb7 {[%clk 0:00:02]}  Qe4+ {[%clk 0:00:06]} 59. Kc8 {[%clk 0:00:02]}  Rf8+ {[%clk 0:00:07]} 60. Kc7 {[%clk 0:00:02]}  Qe5+ {[%clk 0:00:07]} 61. Kb7 {[%clk 0:00:02]}  Qe4+ {[%clk 0:00:07]} 62. Kc7 {[%clk 0:00:02]}  Qxg4 {[%clk 0:00:08]} 63. Rd6 {[%clk 0:00:01]}  Qf4 {[%clk 0:00:08]} 64. Kb7 {[%clk 0:00:01]}  Rf7+ {[%clk 0:00:08]} 65. Kc6 {[%clk 0:00:01]}  Rf6 {[%clk 0:00:08]} 66. Kd7 {[%clk 0:00:02]}  Rxd6+ {[%clk 0:00:08]} 67. Ke7 {[%clk 0:00:03]}  Rf6 {[%clk 0:00:08]} 68. h5 {[%clk 0:00:03]}  Qe5+ {[%clk 0:00:09]} 69. Kd8 {[%clk 0:00:03]}  Rd6+ {[%clk 0:00:10]} 70. Kc7 {[%clk 0:00:03]}  Qc5+ {[%clk 0:00:10]} 71. Kb7 {[%clk 0:00:04]}  Rb6+ {[%clk 0:00:11]} 72. Ka7 {[%clk 0:00:05]}  Qa5# {[%clk 0:00:12]} 0-1


[Site "https://www.chess.com"]

[Event "Titled Tuesday Blitz June 20 Late 2023"]
[White "KorolDimitriy75"]
[Black "Martins, Bruno Andre Leite"]
[BlackFideId "1942255"]
[WhiteElo "2419"]
[BlackElo "2241"]
[Result "0-1"]
[Round "6"]
[TimeControl "180+2"]
[Date "2023.06.20"]
[WhiteClock "0:00:00"]
[BlackClock "0:00:44"]
[Board "98"]

1. d4 {[%clk 0:03:00]}  f5 {[%clk 0:02:51]} 2. c4 {[%clk 0:03:00]}  g6 {[%clk 0:02:49]} 3. Nf3 {[%clk 0:03:01]}  Bg7 {[%clk 0:02:49]} 4. g3 {[%clk 0:03:01]}  Nf6 {[%clk 0:02:49]} 5. Bg2 {[%clk 0:03:01]}  O-O {[%clk 0:02:49]} 6. O-O {[%clk 0:03:02]}  d6 {[%clk 0:02:50]} 7. Nc3 {[%clk 0:03:01]}  c6 {[%clk 0:02:50]} 8. b3 {[%clk 0:03:00]}  e5 {[%clk 0:02:48]} 9. dxe5 {[%clk 0:02:58]}  dxe5 {[%clk 0:02:49]} 10. Ba3 {[%clk 0:02:50]}  Qxd1 {[%clk 0:02:40]} 11. Raxd1 {[%clk 0:02:48]}  Re8 {[%clk 0:02:39]} 12. e3 {[%clk 0:02:04]}  Nbd7 {[%clk 0:02:27]} 13. Rd2 {[%clk 0:01:55]}  e4 {[%clk 0:02:26]} 14. Nd4 {[%clk 0:01:52]}  Ne5 {[%clk 0:02:10]} 15. Rfd1 {[%clk 0:01:45]}  Bd7 {[%clk 0:02:04]} 16. h4 {[%clk 0:01:23]}  Nfg4 {[%clk 0:01:53]} 17. Nce2 {[%clk 0:00:57]}  h6 {[%clk 0:01:45]} 18. Nc2 {[%clk 0:00:22]}  Be6 {[%clk 0:01:41]} 19. Nf4 {[%clk 0:00:19]}  Bf7 {[%clk 0:01:38]} 20. Nd4 {[%clk 0:00:16]}  Bf6 {[%clk 0:01:23]} 21. Nc2 {[%clk 0:00:08]}  g5 {[%clk 0:01:19]} 22. hxg5 {[%clk 0:00:08]}  hxg5 {[%clk 0:01:19]} 23. Ne2 {[%clk 0:00:08]}  Kg7 {[%clk 0:01:13]} 24. Ned4 {[%clk 0:00:07]}  Kg6 {[%clk 0:01:13]} 25. Ne1 {[%clk 0:00:06]}  Rad8 {[%clk 0:01:02]} 26. Ne2 {[%clk 0:00:05]}  Rxd2 {[%clk 0:01:01]} 27. Rxd2 {[%clk 0:00:06]}  Be6 {[%clk 0:00:54]} 28. Nd4 {[%clk 0:00:03]}  Bc8 {[%clk 0:00:53]} 29. Nec2 {[%clk 0:00:03]}  Nd3 {[%clk 0:00:51]} 30. Kf1 {[%clk 0:00:02]}  Nge5 {[%clk 0:00:48]} 31. Ne1 {[%clk 0:00:00]}  a5 {[%clk 0:00:44]} 0-1


[Site "https://www.chess.com"]